[Event "Titled Tuesday Blitz May 30 Early 2023"]
[White "Yuan, Qingyu"]
[Black "Heinemann, Josefine"]
[WhiteFideId "8609772"]
[BlackFideId "12900460"]
[WhiteElo "2359"]
[BlackElo "2342"]
[Result "1-0"]
[Round "03"]
[TimeControl "180+2"]
[Date "2023.05.30"]
[WhiteClock "0:01:10"]
[BlackClock "0:00:24"]

1. e4 {[%clk 0:02:57]}  c5 {[%clk 0:02:59]} 2. Nf3 {[%clk 0:02:57]}  d6 {[%clk 0:02:58]} 3. Bb5+ {[%clk 0:02:58]}  Bd7 {[%clk 0:02:56]} 4. Bxd7+ {[%clk 0:02:58]}  Nxd7 {[%clk 0:02:57]} 5. O-O {[%clk 0:02:58]}  g6 {[%clk 0:02:55]} 6. c3 {[%clk 0:02:53]}  Ngf6 {[%clk 0:02:52]} 7. Qe2 {[%clk 0:02:53]}  Bg7 {[%clk 0:02:51]} 8. d4 {[%clk 0:02:52]}  cxd4 {[%clk 0:02:52]} 9. cxd4 {[%clk 0:02:53]}  O-O {[%clk 0:02:51]} 10. Nc3 {[%clk 0:02:39]}  Rc8 {[%clk 0:02:49]} 11. e5 {[%clk 0:02:38]}  dxe5 {[%clk 0:02:41]} 12. dxe5 {[%clk 0:02:38]}  Ne8 {[%clk 0:02:23]} 13. Rd1 {[%clk 0:02:24]}  Nc7 {[%clk 0:02:16]} 14. Bf4 {[%clk 0:02:00]}  Qe8 {[%clk 0:02:16]} 15. h4 {[%clk 0:01:56]}  Ne6 {[%clk 0:02:08]} 16. Bg3 {[%clk 0:01:52]}  h5 {[%clk 0:01:56]} 17. Rd2 {[%clk 0:01:48]}  Nb6 {[%clk 0:01:54]} 18. Rad1 {[%clk 0:01:42]}  Qc6 {[%clk 0:01:53]} 19. Ne4 {[%clk 0:01:40]}  Rfd8 {[%clk 0:01:50]} 20. Nfg5 {[%clk 0:01:34]}  Rxd2 {[%clk 0:01:49]} 21. Qxd2 {[%clk 0:01:30]}  Rd8 {[%clk 0:01:28]} 22. Qe1 {[%clk 0:01:21]}  Rxd1 {[%clk 0:01:26]} 23. Qxd1 {[%clk 0:01:21]}  Nxg5 {[%clk 0:01:09]} 24. Qd8+ {[%clk 0:01:21]}  Bf8 {[%clk 0:01:08]} 25. Nxg5 {[%clk 0:01:22]}  Qd5 {[%clk 0:01:02]} 26. Qe8 {[%clk 0:01:13]}  Nc4 {[%clk 0:00:24]} 27. e6 {[%clk 0:01:10]} 1-0


[Site "https://www.chess.com"]

[Event "Titled Tuesday Blitz May 30 Early 2023"]
[White "Gil Alba, Hector Luis"]
[Black "Schmakel, Sam"]
[WhiteFideId "3504670"]
[BlackFideId "2039311"]
[WhiteElo "2331"]
[BlackElo "2356"]
[Result "1/2-1/2"]
[Round "03"]
[TimeControl "180+2"]
[Date "2023.05.30"]
[WhiteClock "0:00:26"]
[BlackClock "0:00:19"]

1. e4 {[%clk 0:03:00]}  g6 {[%clk 0:03:00]} 2. d4 {[%clk 0:03:00]}  Bg7 {[%clk 0:03:00]} 3. Nc3 {[%clk 0:03:00]}  d6 {[%clk 0:03:01]} 4. f4 {[%clk 0:03:00]}  Nf6 {[%clk 0:02:59]} 5. Nf3 {[%clk 0:03:01]}  c5 {[%clk 0:03:00]} 6. dxc5 {[%clk 0:03:00]}  Qa5 {[%clk 0:02:59]} 7. Bd3 {[%clk 0:02:59]}  Qxc5 {[%clk 0:02:59]} 8. Qe2 {[%clk 0:02:59]}  O-O {[%clk 0:02:54]} 9. Be3 {[%clk 0:02:59]}  Qc7 {[%clk 0:02:38]} 10. O-O {[%clk 0:02:58]}  Nc6 {[%clk 0:02:38]} 11. a3 {[%clk 0:02:57]}  Bg4 {[%clk 0:02:37]} 12. h3 {[%clk 0:02:56]}  Bxf3 {[%clk 0:02:38]} 13. Qxf3 {[%clk 0:02:57]}  a6 {[%clk 0:02:33]} 14. Rae1 {[%clk 0:02:55]}  b5 {[%clk 0:02:33]} 15. Kh1 {[%clk 0:02:47]}  b4 {[%clk 0:02:32]} 16. axb4 {[%clk 0:02:44]}  Nxb4 {[%clk 0:02:33]} 17. Bc1 {[%clk 0:02:35]}  Nd7 {[%clk 0:02:29]} 18. Qe2 {[%clk 0:02:16]}  Nc5 {[%clk 0:02:19]} 19. Bc4 {[%clk 0:02:14]}  a5 {[%clk 0:02:19]} 20. Nd5 {[%clk 0:02:14]}  Nxd5 {[%clk 0:02:19]} 21. Bxd5 {[%clk 0:02:14]}  Rab8 {[%clk 0:02:18]} 22. c3 {[%clk 0:02:11]}  a4 {[%clk 0:02:03]} 23. f5 {[%clk 0:02:08]}  a3 {[%clk 0:01:27]} 24. bxa3 {[%clk 0:02:06]}  Na4 {[%clk 0:01:25]} 25. c4 {[%clk 0:01:49]}  Nc5 {[%clk 0:01:20]} 26. Qg4 {[%clk 0:01:31]}  Nd3 {[%clk 0:01:08]} 27. fxg6 {[%clk 0:01:27]}  hxg6 {[%clk 0:01:07]} 28. Rxf7 {[%clk 0:01:10]}  Rxf7 {[%clk 0:01:03]} 29. Bxf7+ {[%clk 0:01:08]}  Kxf7 {[%clk 0:01:04]} 30. Qf3+ {[%clk 0:01:08]}  Bf6 {[%clk 0:01:05]} 31. Qxd3 {[%clk 0:01:06]}  Rc8 {[%clk 0:01:05]} 32. Qd5+ {[%clk 0:01:04]}  e6 {[%clk 0:01:05]} 33. Qd1 {[%clk 0:01:00]}  Ke7 {[%clk 0:01:02]} 34. Rf1 {[%clk 0:00:58]}  Qxc4 {[%clk 0:01:01]} 35. Qf3 {[%clk 0:00:57]}  Rf8 {[%clk 0:00:57]} 36. Bg5 {[%clk 0:00:55]}  Qxf1+ {[%clk 0:00:48]} 37. Qxf1 {[%clk 0:00:55]}  Bxg5 {[%clk 0:00:49]} 38. Qa6 {[%clk 0:00:49]}  Be3 {[%clk 0:00:46]} 39. g4 {[%clk 0:00:45]}  Bd4 {[%clk 0:00:42]} 40. a4 {[%clk 0:00:41]}  Rb8 {[%clk 0:00:32]} 41. g5 {[%clk 0:00:40]}  Rb1+ {[%clk 0:00:24]} 42. Kg2 {[%clk 0:00:40]}  Rg1+ {[%clk 0:00:23]} 43. Kf3 {[%clk 0:00:40]}  Rxg5 {[%clk 0:00:24]} 44. a5 {[%clk 0:00:37]}  Rg1 {[%clk 0:00:22]} 45. Qb7+ {[%clk 0:00:36]}  Kf6 {[%clk 0:00:23]} 46. a6 {[%clk 0:00:35]}  Ra1 {[%clk 0:00:22]} 47. Qb4 {[%clk 0:00:30]}  Ke5 {[%clk 0:00:18]} 48. Qb5+ {[%clk 0:00:27]}  Bc5 {[%clk 0:00:18]} 49. Qb2+ {[%clk 0:00:26]}  Bd4 {[%clk 0:00:18]} 50. Qb5+ {[%clk 0:00:26]}  Bc5 {[%clk 0:00:19]} 51. Qb2+ {[%clk 0:00:26]}  Bd4 {[%clk 0:00:19]} 52. Qb5+ {[%clk 0:00:26]} 1/2-1/2


[Site "https://www.chess.com"]

[Event "Titled Tuesday Blitz May 30 Early 2023"]
[White "Aradhya, Garg"]
[Black "Llanos, Guillermo"]
[WhiteFideId "25006746"]
[BlackFideId "100358"]
[WhiteElo "2263"]
[BlackElo "2225"]
[Result "1-0"]
[Round "03"]
[TimeControl "180+2"]
[Date "2023.05.30"]
[WhiteClock "0:00:02"]
[BlackClock "0:00:00"]

1. d4 {[%clk 0:03:00]}  Nf6 {[%clk 0:02:58]} 2. c4 {[%clk 0:03:01]}  b6 {[%clk 0:02:57]} 3. f3 {[%clk 0:03:00]}  Nc6 {[%clk 0:02:57]} 4. d5 {[%clk 0:03:00]}  Ne5 {[%clk 0:02:57]} 5. e4 {[%clk 0:03:00]}  e6 {[%clk 0:02:56]} 6. Be3 {[%clk 0:02:52]}  Bc5 {[%clk 0:02:51]} 7. Bxc5 {[%clk 0:02:40]}  bxc5 {[%clk 0:02:50]} 8. Nc3 {[%clk 0:02:39]}  O-O {[%clk 0:02:39]} 9. Nh3 {[%clk 0:02:08]}  Rb8 {[%clk 0:02:31]} 10. Qd2 {[%clk 0:02:06]}  exd5 {[%clk 0:02:27]} 11. cxd5 {[%clk 0:02:05]}  d6 {[%clk 0:02:26]} 12. Nf2 {[%clk 0:02:05]}  c6 {[%clk 0:02:18]} 13. Be2 {[%clk 0:02:03]}  cxd5 {[%clk 0:02:17]} 14. exd5 {[%clk 0:02:04]}  Re8 {[%clk 0:02:08]} 15. O-O {[%clk 0:02:03]}  Ng6 {[%clk 0:01:59]} 16. Rfe1 {[%clk 0:01:48]}  Rb4 {[%clk 0:01:30]} 17. b3 {[%clk 0:01:47]}  Rd4 {[%clk 0:01:23]} 18. Qc2 {[%clk 0:01:37]}  Nxd5 {[%clk 0:01:01]} 19. Nxd5 {[%clk 0:01:25]}  Rxd5 {[%clk 0:01:01]} 20. Bc4 {[%clk 0:01:25]}  Rde5 {[%clk 0:00:57]} 21. Rxe5 {[%clk 0:01:23]}  Nxe5 {[%clk 0:00:56]} 22. Bd5 {[%clk 0:01:22]}  Qg5 {[%clk 0:00:46]} 23. Rd1 {[%clk 0:01:21]}  Qe3 {[%clk 0:00:43]} 24. Qc1 {[%clk 0:01:02]}  Qxc1 {[%clk 0:00:42]} 25. Rxc1 {[%clk 0:01:03]}  Be6 {[%clk 0:00:40]} 26. Rd1 {[%clk 0:00:58]}  f6 {[%clk 0:00:38]} 27. Ne4 {[%clk 0:00:56]}  Bxd5 {[%clk 0:00:35]} 28. Rxd5 {[%clk 0:00:56]}  Nf7 {[%clk 0:00:34]} 29. Kf2 {[%clk 0:00:52]}  Re6 {[%clk 0:00:33]} 30. h4 {[%clk 0:00:50]}  Kf8 {[%clk 0:00:32]} 31. Rd2 {[%clk 0:00:38]}  Ke7 {[%clk 0:00:31]} 32. Nc3 {[%clk 0:00:38]}  Re5 {[%clk 0:00:27]} 33. Nd5+ {[%clk 0:00:38]}  Ke6 {[%clk 0:00:26]} 34. Nf4+ {[%clk 0:00:38]}  Kd7 {[%clk 0:00:26]} 35. Nd5 {[%clk 0:00:38]}  Nd8 {[%clk 0:00:24]} 36. f4 {[%clk 0:00:32]}  Re6 {[%clk 0:00:23]} 37. b4 {[%clk 0:00:24]}  cxb4 {[%clk 0:00:21]} 38. Nxb4 {[%clk 0:00:25]}  Re4 {[%clk 0:00:20]} 39. Nd5 {[%clk 0:00:25]}  Ra4 {[%clk 0:00:20]} 40. Re2 {[%clk 0:00:21]}  Ne6 {[%clk 0:00:19]} 41. f5 {[%clk 0:00:22]}  Nd4 {[%clk 0:00:16]} 42. Re7+ {[%clk 0:00:19]}  Kc6 {[%clk 0:00:16]} 43. Nc3 {[%clk 0:00:20]}  Ra3 {[%clk 0:00:15]} 44. Nd1 {[%clk 0:00:12]}  Rxa2+ {[%clk 0:00:14]} 45. Ke1 {[%clk 0:00:12]}  Nxf5 {[%clk 0:00:14]} 46. Rf7 {[%clk 0:00:12]}  Rxg2 {[%clk 0:00:12]} 47. Rxa7 {[%clk 0:00:12]}  Nxh4 {[%clk 0:00:11]} 48. Ne3 {[%clk 0:00:11]}  Rg3 {[%clk 0:00:11]} 49. Kf2 {[%clk 0:00:11]}  Rg5 {[%clk 0:00:10]} 50. Ra6+ {[%clk 0:00:10]}  Kd7 {[%clk 0:00:10]} 51. Ra7+ {[%clk 0:00:10]}  Ke6 {[%clk 0:00:10]} 52. Ra6 {[%clk 0:00:10]}  h5 {[%clk 0:00:09]} 53. Nc4 {[%clk 0:00:10]}  Rd5 {[%clk 0:00:09]} 54. Ne3 {[%clk 0:00:09]}  Re5 {[%clk 0:00:09]} 55. Nc4 {[%clk 0:00:09]}  Rd5 {[%clk 0:00:09]} 56. Ne3 {[%clk 0:00:09]}  Rd4 {[%clk 0:00:09]} 57. Ra5 {[%clk 0:00:09]}  g6 {[%clk 0:00:08]} 58. Ra8 {[%clk 0:00:08]}  Nf5 {[%clk 0:00:08]} 59. Ng2 {[%clk 0:00:06]}  Rg4 {[%clk 0:00:08]} 60. Re8+ {[%clk 0:00:05]}  Kd5 {[%clk 0:00:08]} 61. Rf8 {[%clk 0:00:05]}  Ke6 {[%clk 0:00:07]} 62. Re8+ {[%clk 0:00:05]}  Kf7 {[%clk 0:00:07]} 63. Ra8 {[%clk 0:00:04]}  h4 {[%clk 0:00:06]} 64. Kf3 {[%clk 0:00:03]}  Rg3+ {[%clk 0:00:05]} 65. Kf2 {[%clk 0:00:04]}  h3 {[%clk 0:00:05]} 66. Nh4 {[%clk 0:00:03]}  Rg5 {[%clk 0:00:04]} 67. Nf3 {[%clk 0:00:03]}  Rg4 {[%clk 0:00:00]} 68. Rh8 {[%clk 0:00:02]} 1-0


[Site "https://www.chess.com"]

[Event "Titled Tuesday Blitz May 30 Early 2023"]
[White "Paravyan, David"]
[Black "Goldin, Roman"]
[WhiteFideId "4194985"]
[BlackFideId "2803860"]
[WhiteElo "2563"]
[BlackElo "2312"]
[Result "1-0"]
[Round "03"]
[TimeControl "180+2"]
[Date "2023.05.30"]
[WhiteClock "0:01:40"]
[BlackClock "0:00:00"]

1. d4 {[%clk 0:03:00]}  Nf6 {[%clk 0:02:41]} 2. c4 {[%clk 0:02:59]}  Nc6 {[%clk 0:02:37]} 3. Nf3 {[%clk 0:02:59]}  d6 {[%clk 0:02:36]} 4. d5 {[%clk 0:02:57]}  Ne5 {[%clk 0:02:33]} 5. Nc3 {[%clk 0:02:57]}  e6 {[%clk 0:02:21]} 6. Nxe5 {[%clk 0:02:52]}  dxe5 {[%clk 0:02:19]} 7. e4 {[%clk 0:02:53]}  Bc5 {[%clk 0:02:09]} 8. Be2 {[%clk 0:02:53]}  O-O {[%clk 0:02:09]} 9. O-O {[%clk 0:02:53]}  a6 {[%clk 0:02:09]} 10. Bg5 {[%clk 0:02:53]}  h6 {[%clk 0:02:05]} 11. Bh4 {[%clk 0:02:53]}  Qe7 {[%clk 0:01:57]} 12. Kh1 {[%clk 0:02:47]}  g5 {[%clk 0:01:56]} 13. Bg3 {[%clk 0:02:46]}  exd5 {[%clk 0:01:57]} 14. exd5 {[%clk 0:02:41]}  Bd7 {[%clk 0:01:50]} 15. Bd3 {[%clk 0:02:35]}  Bg4 {[%clk 0:01:32]} 16. f3 {[%clk 0:02:31]}  Bd7 {[%clk 0:01:25]} 17. Re1 {[%clk 0:02:31]}  Bd4 {[%clk 0:00:24]} 18. Ne2 {[%clk 0:02:29]}  Be3 {[%clk 0:00:20]} 19. Bc2 {[%clk 0:02:19]}  Nh5 {[%clk 0:00:18]} 20. Qd3 {[%clk 0:02:16]}  f5 {[%clk 0:00:12]} 21. Qxe3 {[%clk 0:02:15]}  f4 {[%clk 0:00:11]} 22. Qd3 {[%clk 0:02:11]}  Bf5 {[%clk 0:00:11]} 23. Qc3 {[%clk 0:02:00]}  fxg3 {[%clk 0:00:11]} 24. Nxg3 {[%clk 0:02:00]}  Nxg3+ {[%clk 0:00:10]} 25. hxg3 {[%clk 0:02:01]}  Rae8 {[%clk 0:00:07]} 26. Bxf5 {[%clk 0:02:00]}  Rxf5 {[%clk 0:00:07]} 27. Re4 {[%clk 0:02:00]}  Qf6 {[%clk 0:00:06]} 28. Rae1 {[%clk 0:02:00]}  h5 {[%clk 0:00:07]} 29. Kg1 {[%clk 0:02:00]}  Re7 {[%clk 0:00:05]} 30. c5 {[%clk 0:01:59]}  g4 {[%clk 0:00:04]} 31. fxg4 {[%clk 0:01:59]}  Rf2 {[%clk 0:00:03]} 32. gxh5 {[%clk 0:01:43]}  Rf7 {[%clk 0:00:00]} 33. Qxe5 {[%clk 0:01:40]} 1-0


[Site "https://www.chess.com"]

[Event "Titled Tuesday Blitz May 30 Early 2023"]
[White "Terry, Renato"]
[Black "Devaev, Alexander"]
[WhiteFideId "3803457"]
[BlackFideId "4169395"]
[WhiteElo "2575"]
[BlackElo "2172"]
[Result "1-0"]
[Round "03"]
[TimeControl "180+2"]
[Date "2023.05.30"]
[WhiteClock "0:01:39"]
[BlackClock "0:01:03"]

1. e4 {[%clk 0:02:57]}  c6 {[%clk 0:03:00]} 2. Nf3 {[%clk 0:02:57]}  d5 {[%clk 0:03:01]} 3. exd5 {[%clk 0:02:57]}  cxd5 {[%clk 0:03:01]} 4. Ne5 {[%clk 0:02:58]}  a6 {[%clk 0:02:51]} 5. d4 {[%clk 0:02:55]}  Nf6 {[%clk 0:02:44]} 6. Bd3 {[%clk 0:02:51]}  Nc6 {[%clk 0:02:38]} 7. c3 {[%clk 0:02:52]}  g6 {[%clk 0:02:25]} 8. O-O {[%clk 0:02:50]}  Bf5 {[%clk 0:02:21]} 9. Re1 {[%clk 0:02:46]}  Bxd3 {[%clk 0:02:20]} 10. Nxd3 {[%clk 0:02:46]}  e6 {[%clk 0:02:15]} 11. Bf4 {[%clk 0:02:42]}  Bd6 {[%clk 0:02:16]} 12. Bg5 {[%clk 0:02:41]}  h6 {[%clk 0:02:15]} 13. Bh4 {[%clk 0:02:40]}  Be7 {[%clk 0:02:14]} 14. Nd2 {[%clk 0:02:39]}  Nh5 {[%clk 0:02:10]} 15. Bxe7 {[%clk 0:02:38]}  Qxe7 {[%clk 0:02:10]} 16. a4 {[%clk 0:02:24]}  a5 {[%clk 0:02:04]} 17. Nf3 {[%clk 0:02:21]}  Nf6 {[%clk 0:01:58]} 18. Ra3 {[%clk 0:02:17]}  O-O {[%clk 0:01:50]} 19. Rb3 {[%clk 0:02:17]}  Kg7 {[%clk 0:01:48]} 20. Nd2 {[%clk 0:02:10]}  Rab8 {[%clk 0:01:43]} 21. Rb5 {[%clk 0:02:07]}  Ne8 {[%clk 0:01:36]} 22. Qg4 {[%clk 0:01:59]}  Nd6 {[%clk 0:01:34]} 23. Rb3 {[%clk 0:01:52]}  b5 {[%clk 0:01:26]} 24. axb5 {[%clk 0:01:53]}  Rxb5 {[%clk 0:01:27]} 25. Rxb5 {[%clk 0:01:52]}  Nxb5 {[%clk 0:01:28]} 26. Nf4 {[%clk 0:01:51]}  Qg5 {[%clk 0:01:23]} 27. Qf3 {[%clk 0:01:51]}  Nd6 {[%clk 0:01:15]} 28. Rxe6 {[%clk 0:01:43]}  Rd8 {[%clk 0:01:03]} 29. Rxg6+ {[%clk 0:01:39]} 1-0


[Site "https://www.chess.com"]

[Event "Titled Tuesday Blitz May 30 Early 2023"]
[White "Ibarra Jerez, Jose Carlos"]
[Black "Janaszak, Dawid"]
[WhiteFideId "2226332"]
[BlackFideId "1119206"]
[WhiteElo "2638"]
[BlackElo "2220"]
[Result "1-0"]
[Round "03"]
[TimeControl "180+2"]
[Date "2023.05.30"]
[WhiteClock "0:00:09"]
[BlackClock "0:00:19"]

1. e4 {[%clk 0:03:00]}  c5 {[%clk 0:02:58]} 2. Nc3 {[%clk 0:03:00]}  Nc6 {[%clk 0:02:57]} 3. Nf3 {[%clk 0:03:00]}  g6 {[%clk 0:02:56]} 4. d4 {[%clk 0:03:00]}  cxd4 {[%clk 0:02:56]} 5. Nxd4 {[%clk 0:03:01]}  Bg7 {[%clk 0:02:57]} 6. Be3 {[%clk 0:03:01]}  Nf6 {[%clk 0:02:56]} 7. Bc4 {[%clk 0:03:02]}  O-O {[%clk 0:02:57]} 8. Bb3 {[%clk 0:03:02]}  Re8 {[%clk 0:02:57]} 9. f3 {[%clk 0:03:01]}  e6 {[%clk 0:02:57]} 10. f4 {[%clk 0:03:02]}  e5 {[%clk 0:02:47]} 11. fxe5 {[%clk 0:02:40]}  Nxe5 {[%clk 0:02:45]} 12. O-O {[%clk 0:02:40]}  d6 {[%clk 0:02:21]} 13. h3 {[%clk 0:02:34]}  Bd7 {[%clk 0:02:13]} 14. Qd2 {[%clk 0:02:30]}  Rc8 {[%clk 0:02:11]} 15. Bg5 {[%clk 0:02:24]}  Rxc3 {[%clk 0:01:58]} 16. Qxc3 {[%clk 0:01:27]}  Nxe4 {[%clk 0:01:56]} 17. Bxd8 {[%clk 0:01:27]}  Nxc3 {[%clk 0:01:54]} 18. Bc7 {[%clk 0:01:24]}  Ne4 {[%clk 0:01:46]} 19. Bd5 {[%clk 0:01:00]}  Nc5 {[%clk 0:01:27]} 20. Bxd6 {[%clk 0:00:51]}  Ne6 {[%clk 0:01:10]} 21. Nxe6 {[%clk 0:00:48]}  fxe6 {[%clk 0:01:07]} 22. Bb3 {[%clk 0:00:40]}  Nc6 {[%clk 0:01:06]} 23. c3 {[%clk 0:00:38]}  Na5 {[%clk 0:00:58]} 24. Rae1 {[%clk 0:00:36]}  Nxb3 {[%clk 0:00:56]} 25. axb3 {[%clk 0:00:37]}  Bb5 {[%clk 0:00:56]} 26. c4 {[%clk 0:00:36]}  Bc6 {[%clk 0:00:56]} 27. Be5 {[%clk 0:00:37]}  Bf8 {[%clk 0:00:56]} 28. Kh2 {[%clk 0:00:36]}  Bb4 {[%clk 0:00:55]} 29. Rd1 {[%clk 0:00:36]}  a5 {[%clk 0:00:54]} 30. Bc3 {[%clk 0:00:35]}  Be7 {[%clk 0:00:53]} 31. Bxa5 {[%clk 0:00:35]}  Be4 {[%clk 0:00:51]} 32. Rd7 {[%clk 0:00:30]}  Bc6 {[%clk 0:00:51]} 33. Rd2 {[%clk 0:00:28]}  Bg5 {[%clk 0:00:50]} 34. Re2 {[%clk 0:00:26]}  e5 {[%clk 0:00:50]} 35. Bd2 {[%clk 0:00:24]}  Bd8 {[%clk 0:00:48]} 36. Bc3 {[%clk 0:00:23]}  Bc7 {[%clk 0:00:48]} 37. Rfe1 {[%clk 0:00:23]}  e4+ {[%clk 0:00:49]} 38. Kg1 {[%clk 0:00:23]}  Bg3 {[%clk 0:00:49]} 39. Rd1 {[%clk 0:00:22]}  e3 {[%clk 0:00:45]} 40. Be1 {[%clk 0:00:21]}  Be5 {[%clk 0:00:43]} 41. Bc3 {[%clk 0:00:17]}  Bg3 {[%clk 0:00:43]} 42. Bd4 {[%clk 0:00:15]}  Bf2+ {[%clk 0:00:43]} 43. Rxf2 {[%clk 0:00:13]}  exf2+ {[%clk 0:00:43]} 44. Kxf2 {[%clk 0:00:13]}  Rd8 {[%clk 0:00:38]} 45. b4 {[%clk 0:00:13]}  Ba4 {[%clk 0:00:37]} 46. Rd2 {[%clk 0:00:13]}  b5 {[%clk 0:00:37]} 47. c5 {[%clk 0:00:13]}  Bb3 {[%clk 0:00:37]} 48. Ke3 {[%clk 0:00:13]}  Re8+ {[%clk 0:00:37]} 49. Kf4 {[%clk 0:00:13]}  Bd5 {[%clk 0:00:35]} 50. Bc3 {[%clk 0:00:13]}  Bc6 {[%clk 0:00:34]} 51. Rd6 {[%clk 0:00:13]}  Bxg2 {[%clk 0:00:32]} 52. h4 {[%clk 0:00:13]}  Kf7 {[%clk 0:00:26]} 53. Rf6+ {[%clk 0:00:11]}  Kg8 {[%clk 0:00:27]} 54. Rb6 {[%clk 0:00:11]}  Rf8+ {[%clk 0:00:22]} 55. Kg3 {[%clk 0:00:10]}  Bf1 {[%clk 0:00:22]} 56. c6 {[%clk 0:00:10]}  Rc8 {[%clk 0:00:22]} 57. Be5 {[%clk 0:00:10]}  Kf7 {[%clk 0:00:20]} 58. c7 {[%clk 0:00:10]}  Bc4 {[%clk 0:00:19]} 59. Rb8 {[%clk 0:00:08]}  Be6 {[%clk 0:00:19]} 60. Rxb5 {[%clk 0:00:09]}  Bd7 {[%clk 0:00:19]} 61. Rb8 {[%clk 0:00:09]}  Ke6 {[%clk 0:00:19]} 62. Bf4 {[%clk 0:00:09]}  Kd5 {[%clk 0:00:20]} 63. b5 {[%clk 0:00:09]}  Kc5 {[%clk 0:00:20]} 64. b6 {[%clk 0:00:09]}  Kc6 {[%clk 0:00:19]} 65. b7 {[%clk 0:00:09]} 1-0


[Site "https://www.chess.com"]

[Event "Titled Tuesday Blitz May 30 Early 2023"]
[White "Atabayev, Yusup"]
[Black "Tanmay Jain"]
[WhiteFideId "14001128"]
[BlackFideId "45015481"]
[WhiteElo "2473"]
[BlackElo "2032"]
[Result "1-0"]
[Round "03"]
[TimeControl "180+2"]
[Date "2023.05.30"]
[WhiteClock "0:00:22"]
[BlackClock "0:00:01"]

1. Nf3 {[%clk 0:03:00]}  d5 {[%clk 0:02:59]} 2. g3 {[%clk 0:03:00]}  Nf6 {[%clk 0:02:59]} 3. Bg2 {[%clk 0:03:01]}  e6 {[%clk 0:03:00]} 4. O-O {[%clk 0:03:01]}  Be7 {[%clk 0:03:01]} 5. d3 {[%clk 0:03:02]}  O-O {[%clk 0:03:01]} 6. Nbd2 {[%clk 0:03:03]}  b6 {[%clk 0:02:59]} 7. e4 {[%clk 0:03:02]}  Bb7 {[%clk 0:03:00]} 8. e5 {[%clk 0:03:02]}  Nfd7 {[%clk 0:03:00]} 9. Re1 {[%clk 0:03:02]}  c5 {[%clk 0:03:00]} 10. Nf1 {[%clk 0:03:01]}  Nc6 {[%clk 0:02:59]} 11. h4 {[%clk 0:03:01]}  Re8 {[%clk 0:02:55]} 12. h5 {[%clk 0:02:58]}  f5 {[%clk 0:02:48]} 13. exf6 {[%clk 0:02:37]}  Bxf6 {[%clk 0:02:48]} 14. N3h2 {[%clk 0:02:32]}  Nde5 {[%clk 0:02:32]} 15. Ne3 {[%clk 0:02:18]}  Qd7 {[%clk 0:02:20]} 16. Bh3 {[%clk 0:02:16]}  Qf7 {[%clk 0:02:13]} 17. Neg4 {[%clk 0:02:13]}  Nxg4 {[%clk 0:02:11]} 18. Nxg4 {[%clk 0:02:09]}  Bc8 {[%clk 0:02:06]} 19. Bg2 {[%clk 0:01:33]}  Bd7 {[%clk 0:02:02]} 20. c3 {[%clk 0:01:32]}  Be7 {[%clk 0:01:50]} 21. Bf4 {[%clk 0:01:29]}  Qf8 {[%clk 0:01:29]} 22. Ne5 {[%clk 0:01:25]}  Nxe5 {[%clk 0:01:27]} 23. Bxe5 {[%clk 0:01:26]}  Bd6 {[%clk 0:01:27]} 24. d4 {[%clk 0:01:21]}  Bxe5 {[%clk 0:01:23]} 25. Rxe5 {[%clk 0:01:21]}  cxd4 {[%clk 0:01:24]} 26. cxd4 {[%clk 0:01:17]}  Rac8 {[%clk 0:01:24]} 27. Bf1 {[%clk 0:01:09]}  Qf6 {[%clk 0:01:16]} 28. Bd3 {[%clk 0:01:08]}  Rf8 {[%clk 0:01:05]} 29. Qe2 {[%clk 0:01:08]}  Rfe8 {[%clk 0:00:52]} 30. Re1 {[%clk 0:01:07]}  Rc7 {[%clk 0:00:35]} 31. Kg2 {[%clk 0:00:53]}  Rf8 {[%clk 0:00:33]} 32. f4 {[%clk 0:00:51]}  Bc8 {[%clk 0:00:31]} 33. Qg4 {[%clk 0:00:46]}  Re7 {[%clk 0:00:23]} 34. Qg5 {[%clk 0:00:43]}  Rfe8 {[%clk 0:00:15]} 35. h6 {[%clk 0:00:41]}  Qxg5 {[%clk 0:00:12]} 36. Rxg5 {[%clk 0:00:41]}  Bb7 {[%clk 0:00:10]} 37. Kf2 {[%clk 0:00:25]}  Bc6 {[%clk 0:00:07]} 38. Rc1 {[%clk 0:00:25]}  Rc8 {[%clk 0:00:05]} 39. Rxg7+ {[%clk 0:00:22]}  Rxg7 {[%clk 0:00:05]} 40. hxg7 {[%clk 0:00:23]}  Kxg7 {[%clk 0:00:06]} 41. Ba6 {[%clk 0:00:23]}  Bb7 {[%clk 0:00:01]} 42. Rxc8 {[%clk 0:00:22]} 1-0


[Site "https://www.chess.com"]